fUSD/lending_fUSD_20250422
["ID","MTS","AMOUNT","RATE_DAILY","PERIOD"]
[358652987,1745339439029,-300.0,0.00023,2]
[358652989,1745339439039,-6248.38248367,0.00023351,2]
[358652991,1745339439050,-2224.67779247,0.00023456,2]
[358652993,1745339439059,-2750.4416325,0.0002359,4]
[358652995,1745339439069,-2000.0,0.00023609,4]
[358652997,1745339439078,-587.0,0.00023711,2]
[358652998,1745339439094,-1163.0,0.00023941,2]
[358653000,1745339439104,-5000.00191069,0.00024,5]
[358653002,1745339439114,-202.01,0.00024489,2]
[358653004,1745339439124,-6248.38248367,0.00024501,2]
[358653006,1745339439135,-533960.238456,0.000248,3]
[358653008,1745339439145,-500.0,0.00024873,2]
[358653010,1745339439155,-492011.020136,0.000249,3]
[358653012,1745339439165,-2750.4416325,0.00024934,5]
[358653014,1745339439174,-499.99,0.0002498,2]
[358653016,1745339439184,-8443.98,0.0002498,2]
[358653018,1745339439194,-150.99,0.0002498,2]
[358653020,1745339439203,-350.0,0.00025,2]
[358653022,1745339439214,-1881.99999962,0.00025,7]
[358653024,1745339439223,-250.0,0.00025551,2]
[358653025,1745339439232,-6248.38248367,0.00025651,2]
[358653027,1745339439242,-2750.4416325,0.00026279,6]
[358653029,1745339439251,-250.0,0.00026293,2]
[358653031,1745339439261,-762.39392613,0.000264,2]
[358653033,1745339439271,-6248.38248367,0.00026801,2]
[358653035,1745339439280,-400.0,0.00027,2]
[358653037,1745339439290,-2224.67779247,0.00027011,2]
[358653039,1745339439299,-2750.4416325,0.00027624,7]
[358653041,1745339439309,-6248.38248367,0.00027952,2]
[358653042,1745339439318,-2750.4416325,0.00028969,8]
[358653044,1745339439328,-6248.38248367,0.00029102,2]
[358653046,1745339439337,-357.33279538,0.0003,2]
[358653048,1745339439347,-6248.38248367,0.00030252,2]
[358653049,1745339439356,-2750.4416325,0.00030314,9]
[358653050,1745339439366,-997.50719157,0.00030352,5]
[358653051,1745339439375,-876.0,0.00030358,2]
[358653052,1745339439384,-2224.67779247,0.00030567,2]
[358653053,1745339439394,-2750.4416325,0.00031659,10]
[358653054,1745339439403,-2750.4416325,0.00033003,11]
[358653055,1745339439412,-876.0,0.00033358,2]
[358653056,1745339439421,-2224.67779247,0.00034122,2]
[358653057,1745339439430,-2750.4416325,0.00034348,11]
[358653058,1745339439439,-247.32882833,0.00035,120]
[358653059,1745339439449,-2750.4416325,0.00035693,12]
[358653060,1745339439460,-2983.59092832,0.0003593,7]
[358653061,1745339439469,-2750.4416325,0.00037038,13]
[358653062,1745339439478,-243.78506816,0.000372,120]
[358653064,1745339439488,-184.28032794,0.00037571,2]
[358653065,1745339439497,-2224.67779247,0.00037678,2]
[358653066,1745339439507,-7686.06992387,0.000379,2]
[358653068,1745339439517,-2750.4416325,0.00038383,14]
[358653070,1745339439527,-263.21734812,0.00038393,2]
[358653072,1745339439537,-278.12602167,0.00038393,2]
[358653074,1745339439547,-1000.0,0.00038716,2]
[358653076,1745339439556,-737.9,0.00038716,120]
[358653078,1745339439566,-437.55,0.00038744,30]
[358653080,1745339439575,-2622.16,0.000388,14]
[358653082,1745339439584,-258.91,0.00038847,2]
[358653084,1745339439594,-5332.07,0.000389,14]
[358653086,1745339439603,-150.38,0.000389,2]
[358653088,1745339439613,-150.38,0.000389,2]
[358653090,1745339439622,-150.38,0.000389,2]
[358653092,1745339439632,-150.38,0.000389,2]
[358653094,1745339439642,-150.38,0.000389,2]
[358653096,1745339439651,-150.38,0.000389,2]
[358653098,1745339439661,-150.38,0.000389,2]
[358653100,1745339439671,-150.38,0.000389,2]
[358653102,1745339439680,-150.38,0.000389,2]
[358653104,1745339439690,-150.38,0.000389,2]
[358653106,1745339439699,-150.38,0.000389,2]
[358653108,1745339439709,-150.38,0.000389,2]
[358653110,1745339439718,-150.38,0.000389,2]
[358653112,1745339439728,-150.38,0.000389,2]
[358653114,1745339439737,-150.38,0.000389,2]
[358653116,1745339439747,-150.38,0.000389,2]
[358653118,1745339439757,-150.38,0.000389,2]
[358653120,1745339439766,-150.38,0.000389,2]
[358653122,1745339439777,-150.38,0.000389,2]
[358653124,1745339439786,-150.38,0.000389,2]
[358653126,1745339439795,-150.38,0.000389,2]
[358653128,1745339439805,-150.38,0.000389,2]
[358653130,1745339439816,-150.38,0.000389,2]
[358653132,1745339439825,-150.38,0.000389,2]
[358653134,1745339439835,-150.38,0.000389,2]
[358653136,1745339439845,-3366.45929378,0.00039,120]
[358653138,1745339439856,-200.0,0.00039395,2]
[358653140,1745339439866,-150.38,0.00039716,2]
[358653142,1745339439876,-358.99677129,0.00039726,15]
[358653144,1745339439886,-500.0,0.00039726,15]
[358653146,1745339439897,-500.0,0.00039726,15]
[358653148,1745339439907,-500.0,0.00039726,15]
[358653150,1745339439916,-500.0,0.00039726,15]
[358653152,1745339439926,-500.0,0.00039726,15]
[358653154,1745339439936,-500.0,0.00039726,15]
[358653156,1745339439945,-500.0,0.00039726,15]
[358653158,1745339439957,-500.0,0.00039726,15]
[358653160,1745339439969,-500.0,0.00039726,15]
[358653162,1745339439978,-500.0,0.00039726,15]
[358653164,1745339439988,-500.0,0.00039726,15]
[358653166,1745339439999,-500.0,0.00039726,15]
[358653169,1745339440010,-500.0,0.00039726,15]
[358653170,1745339440020,-500.0,0.00039726,15]
[358653172,1745339440030,-500.0,0.00039726,15]
[358653174,1745339440040,-500.0,0.00039726,15]
[358653176,1745339440051,-500.0,0.00039726,15]
[358653178,1745339440060,-500.0,0.00039726,15]
[358653180,1745339440070,-500.0,0.00039726,15]
[358653182,1745339440080,-500.0,0.00039726,15]
[358653184,1745339440091,-500.0,0.00039726,15]
[358653186,1745339440102,-500.0,0.00039726,15]
[358653188,1745339440111,-500.0,0.00039726,15]
[358653190,1745339440121,-500.0,0.00039726,15]
[358653192,1745339440131,-500.0,0.00039726,15]
[358653194,1745339440142,-500.0,0.00039726,15]
[358653196,1745339440151,-500.0,0.00039726,15]
[358653198,1745339440161,-500.0,0.00039726,15]
[358653200,1745339440171,-500.0,0.00039726,15]
[358653202,1745339440181,-500.0,0.00039726,15]
[358653204,1745339440190,-500.0,0.00039726,15]
[358653206,1745339440200,-500.0,0.00039726,15]
[358653208,1745339440211,-500.0,0.00039726,15]
[358653210,1745339440220,-500.0,0.00039726,15]
[358653212,1745339440229,-500.0,0.00039726,15]
[358653214,1745339440238,-500.0,0.00039726,15]
[358653216,1745339440248,-500.0,0.00039726,15]
[358653218,1745339440257,-500.0,0.00039726,15]
[358653221,1745339440267,-500.0,0.00039726,15]
[358653223,1745339440277,-500.0,0.00039726,15]
[358653225,1745339440286,-500.0,0.00039726,15]
[358653227,1745339440296,-500.0,0.00039726,15]
[358653229,1745339440306,-500.0,0.00039726,15]
[358653231,1745339440315,-500.0,0.00039726,15]
[358653233,1745339440325,-500.0,0.00039726,15]
[358653235,1745339440334,-500.0,0.00039726,15]
[358653237,1745339440344,-500.0,0.00039726,15]
[358653239,1745339440353,-500.0,0.00039726,15]
[358653241,1745339440363,-500.0,0.00039726,15]
[358653242,1745339440372,-500.0,0.00039726,15]
[358653244,1745339440382,-508.08297931,0.00039726,15]
[358653245,1745339440391,-500.0,0.00039726,15]
[358653247,1745339440400,-1010.05606975,0.00039726,15]
[358653249,1745339440410,-1010.05606975,0.00039726,15]
[358653251,1745339440420,-1010.05606975,0.00039726,15]
[358653253,1745339440429,-1010.05606975,0.00039726,15]
[358653255,1745339440439,-1010.05606975,0.00039726,15]
[358653257,1745339440448,-1010.05606975,0.00039726,15]
[358653259,1745339440458,-1010.05606975,0.00039726,15]
[358653261,1745339440469,-1010.05606975,0.00039726,15]
[358653263,1745339440478,-1010.05606975,0.00039726,15]
[358653265,1745339440487,-1010.05606975,0.00039726,15]
[358653267,1745339440499,-1010.05606975,0.00039726,15]
[358653268,1745339440509,-1010.05606975,0.00039726,15]
[358653270,1745339440519,-1010.05606975,0.00039726,15]
[358653272,1745339440529,-1010.05606975,0.00039726,15]
[358653274,1745339440538,-1010.05606975,0.00039726,15]
[358653276,1745339440547,-1010.05606975,0.00039726,15]
[358653278,1745339440557,-1010.05606975,0.00039726,15]
[358653281,1745339440575,-1010.05606975,0.00039726,15]
[358653284,1745339440589,-1010.05606975,0.00039726,15]
[358653286,1745339440599,-1010.05606975,0.00039726,15]
[358653288,1745339440609,-1010.05606975,0.00039726,15]
[358653290,1745339440619,-1010.05606975,0.00039726,15]
[358653292,1745339440629,-1010.05606975,0.00039726,15]
[358653294,1745339440639,-1010.05606975,0.00039726,15]
[358653296,1745339440649,-1010.05606975,0.00039726,15]
[358653298,1745339440659,-1010.05606975,0.00039726,15]
[358653300,1745339440668,-1010.05606975,0.00039726,15]
[358653302,1745339440678,-1010.05606975,0.00039726,15]
[358653304,1745339440688,-1010.05606975,0.00039726,15]
[358653306,1745339440698,-1010.05606975,0.00039726,15]
[358653308,1745339440710,-1010.05606975,0.00039726,15]
[358653310,1745339440720,-1010.05606975,0.00039726,15]
[358653312,1745339440729,-1010.05606975,0.00039726,15]
[358653314,1745339440739,-1010.05606975,0.00039726,15]
[358653316,1745339440749,-1010.05606981,0.00039726,15]
[358653318,1745339440759,-1010.05606981,0.00039726,15]
[358653320,1745339440769,-1010.0560698,0.00039726,15]
[358653322,1745339440779,-2750.4416325,0.00039728,15]
[358653324,1745339440789,-8962.77779489,0.00039999,7]
[358653326,1745339440799,-1181.65088066,0.0004,10]
[358653327,1745339440809,-162.95,0.0004,30]
[358653329,1745339440819,-433.97746439,0.0004,30]
[358653331,1745339440829,-1235.44593755,0.0004,10]
[358653333,1745339440838,-320.8578426,0.0004,120]
[358653335,1745339440848,-1539.58571502,0.0004,15]
[358653337,1745339440858,-2750.4416325,0.00041072,16]
[358653339,1745339440868,-2224.67779247,0.00041233,15]
[358653341,1745339440878,-263.01,0.00041235,120]
[358653343,1745339440887,-2750.4416325,0.00042417,17]
[358653345,1745339440897,-1000.0,0.00043556,2]
[358653347,1745339440908,-2622.16,0.000436,14]
[358653350,1745339440918,-2750.4416325,0.00043762,18]
[358653352,1745339440931,-2224.67779247,0.00044789,15]
[358653354,1745339440941,-4999.999999,0.00045,120]
[358653356,1745339440951,-5332.07,0.00045,60]
[358653358,1745339440960,-2750.4416325,0.00045107,18]
[358653360,1745339440972,-181.38426833,0.00045328,73]
[358653362,1745339440981,-1306.839,0.00045328,73]
[358653364,1745339440991,-1650.33890658,0.0004607,18]
[358653365,1745339441002,-150.0,0.00046179,120]
[358653367,1745339441018,-512.57,0.00046349,2]
[358653369,1745339441027,-2750.4416325,0.00046452,19]
[358653370,1745339441037,-4643.86307268,0.000465,120]
[358653372,1745339441047,-514.64127501,0.00046575,5]
[358653374,1745339441057,-500.0,0.00046986,120]
[358653375,1745339441067,-500.0,0.00046986,120]
[358653377,1745339441076,-500.0,0.00046986,120]
[358653379,1745339441087,-421.83213558,0.00046986,120]
[358653381,1745339441100,-500.0,0.00046986,120]
[358653383,1745339441111,-500.0,0.00046986,120]
[358653384,1745339441121,-500.0,0.00046986,120]
[358653386,1745339441131,-500.0,0.00046986,120]
[358653388,1745339441141,-150.38,0.0004706,2]
[358653390,1745339441151,-150.38,0.0004706,2]
[358653391,1745339441161,-200.0,0.0004707,30]
[358653393,1745339441171,-249925.0,0.0004707,30]
[358653395,1745339441181,-13225.41905122,0.0004707,120]
[358653397,1745339441191,-16067.89268465,0.0004707,30]
[358653398,1745339441200,-7542.47309332,0.0004707,120]
[358653400,1745339441211,-499.58259073,0.0004707,2]
[358653402,1745339441221,-461.82,0.00047103,2]
[358653404,1745339441231,-461.82,0.00047103,2]
[358653405,1745339441241,-461.82,0.00047103,2]
[358653407,1745339441251,-461.82,0.00047103,2]
[358653409,1745339441261,-461.82,0.00047103,2]
[358653411,1745339441272,-461.82,0.00047103,2]
[358653412,1745339441282,-461.82,0.00047103,2]
[358653414,1745339441291,-461.82,0.00047103,2]
[358653416,1745339441301,-461.82,0.00047103,2]
[358653418,1745339441311,-461.82,0.00047103,2]
[358653419,1745339441321,-461.82,0.00047103,2]
[358653421,1745339441331,-461.82,0.00047103,2]
[358653423,1745339441342,-461.82,0.00047103,2]
[358653424,1745339441352,-461.82,0.00047103,2]
[358653426,1745339441362,-461.82,0.00047103,2]
[358653447,1745339441590,-461.82,0.00047103,2]
[358653449,1745339441619,-461.82,0.00047103,2]
[358653451,1745339441629,-461.82,0.00047103,2]
[358653453,1745339441639,-461.82,0.00047103,2]
[358653455,1745339441649,-461.99190582,0.00047103,2]
[358653457,1745339441659,-2622.16,0.000472,14]
[358653458,1745339441668,-27942.81229731,0.000474,2]
[358653460,1745339441678,-151.77052133,0.00047406,120]
[358653462,1745339441687,-8639.92047843,0.00047444,2]
[358653464,1745339441697,-437.55,0.00047458,120]
[358653466,1745339441707,-30674.10467739,0.000475,120]
[358653467,1745339441717,-150.0,0.00047582,120]
[358653469,1745339441727,-152.0,0.00047688,3]
[358653471,1745339441737,-2000.0,0.000477,2]
[358653473,1745339441746,-2750.4416325,0.00047797,20]
[358653475,1745339441755,-1201.75,0.000478,2]
[358653477,1745339441765,-5332.07,0.000478,60]
[358653478,1745339441775,-3461.95507342,0.000478,2]
[358653480,1745339441785,-689.24761137,0.000479,30]
[358653482,1745339441795,-1265.0,0.00048,90]
[358653484,1745339441805,-697.40474778,0.00048,120]
[358653486,1745339441815,-150.38,0.00048257,2]
[358653488,1745339441830,-23900.0,0.00048267,2]
[358653490,1745339441841,-274.59,0.00048267,2]
[358653492,1745339441850,-500.0,0.00048267,120]
[358653493,1745339441860,-500.0,0.00048267,120]
[358653495,1745339441869,-500.0,0.00048267,120]
[358653497,1745339441879,-500.0,0.00048267,120]
[358653499,1745339441889,-500.0,0.00048267,120]
[358653501,1745339441899,-500.0,0.00048267,120]
[358653503,1745339441909,-500.0,0.00048267,120]
[358653505,1745339441918,-500.0,0.00048267,120]
[358653506,1745339441928,-500.0,0.00048267,120]
[358653508,1745339441938,-500.0,0.00048267,120]
[358653510,1745339441948,-500.0,0.00048267,120]
[358653512,1745339441957,-500.0,0.00048267,120]
[358653513,1745339441967,-500.0,0.00048267,120]
[358653515,1745339441976,-500.0,0.00048267,120]
[358653517,1745339441986,-500.0,0.00048267,120]
[358653519,1745339441995,-500.0,0.00048267,120]
[358653521,1745339442005,-500.0,0.00048267,120]
[358653522,1745339442016,-500.0,0.00048267,120]
[358653524,1745339442025,-500.0,0.00048267,120]
[358653526,1745339442035,-500.0,0.00048267,120]
[358653528,1745339442044,-765.0,0.00048267,120]
[358653529,1745339442053,-2224.67779247,0.00048344,15]
[358653531,1745339442063,-155.10302643,0.0004835,2]
[358653533,1745339442072,-1265.0,0.00048356,90]
[358653535,1745339442081,-1000.0,0.00048395,2]
[358653536,1745339442093,-150.0,0.00048435,120]
[358653538,1745339442103,-500.0,0.000486,120]
[358653540,1745339442112,-2622.16,0.000486,14]
[358653542,1745339442122,-312.17,0.000486,45]
[358653543,1745339442132,-312.17,0.000486,45]
[358653545,1745339442141,-312.17,0.000486,45]
[358653547,1745339442151,-312.17,0.000486,45]
[358653549,1745339442160,-312.17,0.000486,45]
[358653551,1745339442171,-312.17,0.000486,45]
[358653553,1745339442181,-312.17,0.000486,45]
[358653554,1745339442190,-312.17,0.000486,45]
[358653556,1745339442199,-312.17,0.000486,45]
[358653558,1745339442210,-312.17,0.000486,45]
[358653560,1745339442220,-312.17,0.000486,45]
[358653562,1745339442230,-312.17,0.000486,45]
[358653564,1745339442240,-512.57,0.00048613,2]
[358653565,1745339442249,-1265.0,0.0004863,90]
[358653567,1745339442259,-150.0,0.00048844,120]
[358653569,1745339442268,-800.0,0.000489,17]
[358653572,1745339442288,-1265.0,0.00048904,90]
[358653574,1745339442299,-921.0,0.00048991,10]
[358653576,1745339442309,-30000.0,0.00049,120]
[358653577,1745339442319,-5332.07,0.00049,60]
[358653579,1745339442330,-742.38552444,0.00049,120]
[358653581,1745339442340,-22146.0,0.00049,3]
[358653583,1745339442349,-390.66258475,0.00049,30]
[358653585,1745339442359,-169.64063781,0.00049042,120]
[358653587,1745339442368,-2750.4416325,0.00049141,21]
[358653589,1745339442378,-1265.0,0.00049178,90]
[358653591,1745339442387,-1000.0,0.00049315,120]
[358653592,1745339442397,-500.0,0.00049315,3]
[358653594,1745339442407,-408.36175147,0.00049342,120]
[358653596,1745339442416,-655.16,0.000494,2]
[358653598,1745339442427,-3700.0,0.000494,8]
[358653600,1745339442437,-512.0,0.000494,120]
[358653602,1745339442447,-617.0,0.000494,120]
[358653604,1745339442457,-167.02112766,0.000494,36]
[358653606,1745339442468,-1265.0,0.00049452,120]
[358653607,1745339442478,-500.0,0.00049459,120]
[358653609,1745339442488,-2000.0,0.00049459,120]
[358653611,1745339442498,-500.0,0.00049459,120]
[358653613,1745339442508,-500.0,0.00049459,120]
[358653615,1745339442518,-200.0,0.00049459,120]
[358653617,1745339442530,-5000.0,0.00049468,120]
[358653619,1745339442540,-500.0,0.00049473,10]
[358653621,1745339442549,-165.85192511,0.00049479,25]
[358653622,1745339442559,-150.38,0.0004949,120]
[358653624,1745339442569,-150.38,0.0004949,120]
[358653626,1745339442579,-2341.0,0.000495,7]
[358653628,1745339442588,-200.0,0.000495,7]
[358653630,1745339442597,-500.0,0.000495,2]
[358653632,1745339442607,-158.0,0.000495,14]
[358653634,1745339442617,-258.47009912,0.000495,14]
[358653636,1745339442627,-100000.0,0.000495,60]
[358653638,1745339442638,-155446.57802558,0.000495,60]
[358653640,1745339442649,-4019.51415395,0.000495,120]
[358653642,1745339442659,-3000.0,0.000495,2]
[358653644,1745339442669,-439.71157466,0.000495,120]
[358653646,1745339442679,-915.57724556,0.00049558,2]
[358653648,1745339442689,-1000.0,0.00049568,9]
[358653650,1745339442699,-1000.0,0.00049568,9]
[358653652,1745339442709,-1000.0,0.00049568,9]
[358653655,1745339442724,-1000.0,0.00049568,9]
[358653657,1745339442734,-1000.0,0.00049568,9]
[358653659,1745339442744,-1000.0,0.00049568,9]
[358653660,1745339442755,-1000.0,0.00049568,9]
[358653661,1745339442765,-1000.0,0.00049568,9]
[358653662,1745339442775,-1000.0,0.00049568,9]
[358653663,1745339442786,-1000.0,0.00049568,9]
[358653664,1745339442796,-1000.0,0.00049568,9]
[358653665,1745339442807,-1000.0,0.00049568,9]
[358653666,1745339442818,-1000.0,0.00049568,9]
[358653667,1745339442828,-1000.0,0.00049568,9]
[358653668,1745339442838,-1000.0,0.00049568,9]
[358653669,1745339442849,-1000.0,0.00049568,9]
[358653670,1745339442859,-1000.0,0.00049568,9]
[358653671,1745339442869,-1000.0,0.00049568,9]
[358653672,1745339442880,-1000.0,0.00049568,9]
[358653673,1745339442890,-1000.0,0.00049568,9]
[358653674,1745339442901,-1000.0,0.00049568,9]
[358653675,1745339442911,-1000.0,0.00049568,9]
[358653676,1745339442922,-1000.0,0.00049568,9]
[358653677,1745339442933,-1000.0,0.00049568,9]
[358653678,1745339442945,-1000.0,0.00049568,9]
[358653679,1745339442955,-1000.0,0.00049568,9]
[358653681,1745339442966,-1000.0,0.00049568,9]
[358653682,1745339442976,-1000.0,0.00049568,9]
[358653684,1745339442987,-1000.0,0.00049568,9]
[358653686,1745339442998,-1000.0,0.00049568,9]
[358653688,1745339443008,-1000.0,0.00049568,9]
[358653690,1745339443018,-1000.0,0.00049568,9]
[358653692,1745339443031,-1000.0,0.00049568,9]
[358653695,1745339443042,-1000.0,0.00049568,9]
[358653697,1745339443052,-1000.0,0.00049568,9]
[358653699,1745339443062,-1000.0,0.00049568,9]
[358653701,1745339443072,-1000.0,0.00049568,9]
[358653703,1745339443082,-1000.0,0.00049568,9]
[358653705,1745339443095,-1000.0,0.00049568,9]
[358653707,1745339443105,-1000.0,0.00049568,9]
[358653709,1745339443116,-1000.0,0.00049568,9]
[358653711,1745339443126,-1000.0,0.00049568,9]
[358653714,1745339443138,-1000.0,0.00049568,9]
[358653716,1745339443150,-1000.0,0.00049568,9]
[358653718,1745339443164,-1000.0,0.00049568,9]
[358653721,1745339443176,-1000.0,0.00049568,9]
[358653723,1745339443187,-1000.0,0.00049568,9]
[358653725,1745339443197,-1000.0,0.00049568,9]
[358653727,1745339443207,-1000.0,0.00049568,9]
[358653730,1745339443219,-1000.0,0.00049568,9]
[358653732,1745339443229,-1000.0,0.00049568,9]
[358653734,1745339443239,-1000.0,0.00049568,9]
[358653736,1745339443250,-1000.0,0.00049568,9]
[358653738,1745339443260,-1000.0,0.00049568,9]
[358653740,1745339443270,-1000.0,0.00049568,9]
[358653742,1745339443280,-1000.0,0.00049568,9]
[358653744,1745339443290,-1000.0,0.00049568,9]
[358653746,1745339443299,-1000.0,0.00049568,9]
[358653748,1745339443309,-953.0,0.00049568,9]
[358653750,1745339443319,-1000.0,0.00049568,9]
[358653752,1745339443329,-1000.0,0.00049568,9]
[358653754,1745339443340,-1000.0,0.00049568,9]
[358653757,1745339443350,-1000.0,0.00049568,9]
[358653760,1745339443360,-1000.0,0.00049568,9]
[358653764,1745339443370,-1000.0,0.00049568,9]
[358653766,1745339443380,-1000.0,0.00049568,9]
[358653768,1745339443390,-1000.0,0.00049568,9]
[358653770,1745339443399,-1000.0,0.00049568,9]
[358653772,1745339443409,-1000.0,0.00049568,9]
[358653774,1745339443419,-1000.0,0.00049568,9]
[358653776,1745339443429,-1000.0,0.00049568,9]
[358653779,1745339443439,-1000.0,0.00049568,9]
[358653781,1745339443450,-1000.0,0.00049568,9]
[358653782,1745339443462,-1000.0,0.00049568,9]
[358653785,1745339443472,-1000.0,0.00049568,9]
[358653787,1745339443483,-1000.0,0.00049568,9]
[358653789,1745339443493,-1000.0,0.00049568,9]
[358653791,1745339443503,-1000.0,0.00049568,9]
[358653793,1745339443513,-1000.0,0.00049568,9]
[358653795,1745339443523,-1000.0,0.00049568,9]
[358653797,1745339443533,-1000.0,0.00049568,9]
[358653799,1745339443543,-1000.0,0.00049568,9]
[358653801,1745339443553,-1000.0,0.00049568,9]
[358653803,1745339443563,-1000.0,0.00049568,9]
[358653805,1745339443573,-1000.0,0.00049568,9]
[358653807,1745339443582,-1139.0,0.00049568,9]
[358653809,1745339443592,-353.0,0.00049589,60]
[358653811,1745339443602,-353.0,0.00049589,60]
[358653813,1745339443612,-353.0,0.00049589,60]
[358653815,1745339443622,-353.0,0.00049589,60]
[358653817,1745339443632,-353.0,0.00049589,60]
[358653819,1745339443643,-353.0,0.00049589,60]
[358653821,1745339443653,-353.0,0.00049589,60]
[358653823,1745339443664,-353.0,0.00049589,60]
[358653825,1745339443674,-353.0,0.00049589,60]
[358653827,1745339443685,-353.0,0.00049589,60]
[358653829,1745339443695,-353.0,0.00049589,60]
[358653831,1745339443705,-353.0,0.00049589,60]
[358653833,1745339443717,-353.0,0.00049589,60]
[358653834,1745339443727,-196.0,0.00049589,60]
[358653836,1745339443737,-196.0,0.00049589,60]
[358653838,1745339443747,-196.0,0.00049589,60]
[358653840,1745339443757,-196.0,0.00049589,60]
[358653842,1745339443767,-196.0,0.00049589,60]
[358653844,1745339443778,-196.0,0.00049589,60]
[358653846,1745339443788,-196.0,0.00049589,60]
[358653848,1745339443798,-196.0,0.00049589,60]
[358653850,1745339443808,-196.0,0.00049589,60]
[358653852,1745339443819,-196.0,0.00049589,60]
[358653854,1745339443829,-196.0,0.00049589,60]
[358653856,1745339443839,-196.0,0.00049589,60]
[358653858,1745339443850,-196.0,0.00049589,60]
[358653860,1745339443861,-353.0,0.00049589,60]
[358653862,1745339443871,-353.0,0.00049589,60]
[358653864,1745339443881,-353.0,0.00049589,60]
[358653866,1745339443891,-353.0,0.00049589,60]
[358653868,1745339443901,-353.0,0.00049589,60]
[358653870,1745339443910,-353.0,0.00049589,60]
[358653872,1745339443920,-353.0,0.00049589,60]
[358653898,1745339444131,-353.0,0.00049589,60]
[358653900,1745339444141,-353.0,0.00049589,60]
[358653902,1745339444151,-353.0,0.00049589,60]
[358653904,1745339444161,-353.0,0.00049589,60]
[358653906,1745339444173,-353.0,0.00049589,60]
[358653908,1745339444184,-353.0,0.00049589,60]
[358653910,1745339444194,-353.0,0.00049589,60]
[358653912,1745339444205,-196.0,0.00049589,60]
[358653914,1745339444216,-196.0,0.00049589,60]
[358653916,1745339444226,-196.0,0.00049589,60]
[358653918,1745339444236,-196.0,0.00049589,60]
[358653920,1745339444246,-196.0,0.00049589,60]
[358653922,1745339444256,-196.0,0.00049589,60]
[358653924,1745339444265,-196.0,0.00049589,60]
[358653926,1745339444275,-196.0,0.00049589,60]
[358653928,1745339444285,-196.0,0.00049589,60]
[358653930,1745339444296,-196.0,0.00049589,60]
[358653932,1745339444306,-196.0,0.00049589,60]
[358653934,1745339444315,-196.0,0.00049589,60]
[358653936,1745339444325,-196.0,0.00049589,60]
[358653938,1745339444334,-196.0,0.00049589,60]
[358653940,1745339444345,-1107.47199131,0.0004968,120]
[358653942,1745339444354,-288.74,0.00049689,120]
[358653944,1745339444364,-2000.0,0.00049689,2]
[358653946,1745339444373,-2000.0,0.00049689,2]
[358653948,1745339444383,-2000.0,0.00049689,2]
[358653950,1745339444393,-2000.0,0.00049689,2]
[358653952,1745339444403,-2000.0,0.00049689,2]
[358653954,1745339444413,-1185.22251983,0.0004969,120]
[358653956,1745339444423,-5108.0577607,0.000497,10]
[358653958,1745339444434,-166.66,0.00049715,2]
[358653960,1745339444444,-150.0,0.00049739,7]
[358653962,1745339444454,-150.0,0.00049743,7]
[358653964,1745339444466,-2008.0781,0.0004975,3]
[358653966,1745339444475,-2000.0,0.0004975,3]
[358653968,1745339444484,-200.0,0.0004975,2]
[358653970,1745339444494,-150.0,0.00049754,7]
[358653971,1745339444504,-394.17192153,0.0004977,120]